[Event "Moscow Youth U19 2019"]
[Site "Moscow"]
[Date "2019.11.20"]
[Round "3.1"]
[White "Pavlov, Danila"]
[Black "Fedorov, Nikita"]
[Result "1/2-1/2"]
[ECO "C12"]
[WhiteElo "2369"]
[BlackElo "2133"]
[Annotator "ChessBase"]
[PlyCount "87"]
[EventDate "2019.11.18"]
[EventType "swiss"]
[EventCountry "RUS"]
[SourceTitle "playchess.com"]
[Source "ChessBase"]
[SourceQuality "1"]
[TimeControl "5400+30"]

1. e4 {[%emt 0:00:00]} e6 {[%emt 0:00:00]} 2. d4 {[%emt 0:00:00]} d5 {[%emt 0:00:00]} 3. Nc3 {[%emt 0:00:00]} Nf6 {[%emt 0:00:00]} 4. Bg5 {[%emt 0:00:56]} Bb4 {[%emt 0:00:00]} 5. e5 {[%emt 0:00:06]} h6 {[%emt 0:00:00]} 6. Bd2 {[%emt 0:00:20]} Bxc3 {[%emt 0:00:00]} 7. bxc3 {[%emt 0:00:04]} Ne4 {[%emt 0:00:02]} 8. Qg4 {[%emt 0:00:05]} Kf8 {[%emt 0:00:04]} 9. Bd3 {[%emt 0:00:10]} Nxd2 {[%emt 0:00:05]} 10. Kxd2 {[%emt 0:00:01]} c5 {[%emt 0:00:11]} 11. Nf3 {[%emt 0:01:38]} Nc6 {[%emt 0:01:09]} 12. h4 {[%emt 0:01:23]} c4 {[%emt 0:00:20]} 13. Be2 {[%emt 0:00:17]} Bd7 {[%emt 0:02:04]} 14. Rh3 {[%emt 0:08:19]} b5 {[%emt 0:01:28]} 15. Rg3 {[%emt 0:07:04]} Rg8 {[%emt 0:00:05]} 16. h5 {[%emt 0:03:53]} Be8 {[%emt 0:03:23]} 17. Qf4 {[%emt 0:01:47]} a5 {[%emt 0:02:22]} 18. Rh1 {[%emt 0:10:18]} b4 {[%emt 0:05:42]} 19. Bd1 {[%emt 0:05:44]} bxc3+ {[%emt 0:09:40]} 20. Ke2 {[%emt 0:02:05]} Qb6 {[%emt 0:13:00]} 21. Rhh3 {[%emt 0:06:26]} Nb4 {[%emt 0:10:43]} 22. Nh4 {[%emt 0:26:56]} Ke7 {[%emt 0:03:00]} 23. a3 {[%emt 0:06:53]} Na2 {[%emt 0:02:47]} 24. Rxg7 {[%emt 0:02:30]} Rxg7 {[%emt 0:10:13]} 25. Qf6+ {[%emt 0:00:05]} Kd7 {[%emt 0:02:48]} 26. Qxg7 {[%emt 0:00:05]} Qxd4 {[%emt 0:02:28]} 27. Qxh6 {[%emt 0:00:25]} Qxe5+ {[%emt 0:01:25]} 28. Re3 {[%emt 0:02:02]} Nc1+ {[%emt 0:08:25]} 29. Kf1 {[%emt 0:00:32]} Qd4 {[%emt 0:05:12]} 30. Nf3 {[%emt 0:00:04]} Qxd1+ {[%emt 0:01:25]} 31. Re1 {[%emt 0:00:01]} Qxc2 {[%emt 0:00:16]} 32. Rxc1 {[%emt 0:00:03]} Qd3+ {[%emt 0:01:05]} 33. Kg1 {[%emt 0:00:07]} Kc7 {[%emt 0:02:44]} 34. Qf4+ {[%emt 0:06:00]} Kc8 {[%emt 0:04:54]} 35. h6 {[%emt 0:01:36]} Rb8 {[%emt 0:01:42]} 36. Qh4 {[%emt 0:01:49]} Rb1 {[%emt 0:02:57]} 37. h7 {[%emt 0:00:49]} Rxc1+ {[%emt 0:00:09]} 38. Kh2 {[%emt 0:00:05]} Qb1 {[%emt 0:05:03]} 39. h8=Q {[%emt 0:01:41]} Rh1+ {[%emt 0:00:06]} 40. Kg3 {[%emt 0:00:01]} Qb8+ {[%emt 0:01:33]} 41. Ne5 {[%emt 0:01:01]} Rxh4 {[%emt 0:00:31]} 42. Qxe8+ {[%emt 0:00:05]} Kb7 {[%emt 0:00:07]} 43. Qb5+ {[%emt 0:00:30]} Ka8 {[%emt 0:01:21]} 44. Qa6+ {[%emt 0:00:59]} 1/2-1/2

[Event "Moscow Youth U19 2019"]
[Site "Moscow"]
[Date "2019.11.20"]
[Round "3.2"]
[White "Yeritsyan, Aram"]
[Black "Usov, Aleksandr E."]
[Result "1/2-1/2"]
[ECO "B15"]
[WhiteElo "2276"]
[BlackElo "1930"]
[Annotator "ChessBase"]
[PlyCount "94"]
[EventDate "2019.11.18"]
[EventType "swiss"]
[EventCountry "RUS"]
[SourceTitle "playchess.com"]
[Source "ChessBase"]
[SourceQuality "1"]
[TimeControl "5400+30"]

1. e4 {[%emt 0:00:00]} c6 {[%emt 0:00:00]} 2. d4 {[%emt 0:00:00]} d5 {[%emt 0:00:00]} 3. Nc3 {[%emt 0:00:06]} dxe4 {[%emt 0:00:00]} 4. Nxe4 {[%emt 0:00:02]} Nf6 {[%emt 0:00:19]} 5. Nxf6+ {[%emt 0:00:13]} exf6 {[%emt 0:00:15]} 6. c3 {[%emt 0:00:06]} Bd6 {[%emt 0:00:08]} 7. Bd3 {[%emt 0:00:05]} O-O {[%emt 0:00:07]} 8. Qc2 {[%emt 0:00:04]} Re8+ {[%emt 0:00:08]} 9. Ne2 {[%emt 0:00:09]} h5 {[%emt 0:00:12]} 10. Be3 {[%emt 0:03:05]} Nd7 {[%emt 0:01:17]} 11. Ng3 {[%emt 0:00:21]} c5 {[%emt 0:07:12]} 12. O-O-O {[%emt 0:03:52]} Qa5 {[%emt 0:07:36]} 13. Kb1 {[%emt 0:04:30]} cxd4 {[%emt 0:05:27]} 14. Bxd4 {[%emt 0:01:31]} Nf8 {[%emt 0:02:05]} 15. Nf5 {[%emt 0:10:11]} Bxf5 {[%emt 0:02:39]} 16. Bxf5 {[%emt 0:00:04]} Be5 {[%emt 0:01:12]} 17. Be3 {[%emt 0:00:52]} b5 {[%emt 0:01:14]} 18. Rd5 {[%emt 0:05:03]} Rab8 {[%emt 0:03:35]} 19. Rhd1 {[%emt 0:02:21]} Qc7 {[%emt 0:02:29]} 20. Bd7 {[%emt 0:14:32]} Nxd7 {[%emt 0:12:45]} 21. Rxd7 {[%emt 0:00:43]} Qc6 {[%emt 0:00:20]} 22. Qb3 {[%emt 0:04:22]} Re6 {[%emt 0:03:17]} 23. Bxa7 {[%emt 0:01:50]} Rb7 {[%emt 0:03:55]} 24. Rxb7 {[%emt 0:10:47]} Qxb7 {[%emt 0:00:35]} 25. Be3 {[%emt 0:01:09]} Bxh2 {[%emt 0:04:04]} 26. Rd8+ {[%emt 0:08:21]} Kh7 {[%emt 0:00:08]} 27. Qd5 {[%emt 0:00:01]} Qxd5 {[%emt 0:00:19]} 28. Rxd5 {[%emt 0:00:04]} Re5 {[%emt 0:01:23]} 29. Rxe5 {[%emt 0:00:03]} Bxe5 {[%emt 0:01:20]} 30. Kc2 {[%emt 0:00:53]} g5 {[%emt 0:02:18]} 31. c4 {[%emt 0:03:45]} h4 {[%emt 0:17:23]} 32. cxb5 {[%emt 0:00:44]} g4 {[%emt 0:00:40]} 33. f3 {[%emt 0:00:05]} gxf3 {[%emt 0:01:37]} 34. gxf3 {[%emt 0:00:02]} h3 {[%emt 0:00:13]} 35. Bg1 {[%emt 0:00:03]} h2 {[%emt 0:01:20]} 36. Bxh2 {[%emt 0:00:04]} Bxh2 {[%emt 0:00:08]} 37. a4 {[%emt 0:05:45]} Kg6 {[%emt 0:00:29]} 38. a5 {[%emt 0:00:03]} Kf5 {[%emt 0:00:08]} 39. b6 {[%emt 0:00:03]} Bg1 {[%emt 0:00:12]} 40. Kd3 {[%emt 0:00:20]} Ke6 {[%emt 0:02:45]} 41. Kc4 {[%emt 0:00:11]} Kd7 {[%emt 0:00:52]} 42. Kb5 {[%emt 0:00:24]} f5 {[%emt 0:02:22]} 43. Ka6 {[%emt 0:04:48]} Kc6 {[%emt 0:01:11]} 44. b4 {[%emt 0:01:50]} Bd4 {[%emt 0:00:34]} 45. Ka7 {[%emt 0:00:58]} Kb5 {[%emt 0:00:35]} 46. Kb7 {[%emt 0:00:04]} f4 {[%emt 0:01:00]} 47. Kc8 {[%emt 0:07:51]} Kxb4 {[%emt 0:01:16]} 1/2-1/2

[Event "Moscow Youth U19 2019"]
[Site "Moscow"]
[Date "2019.11.20"]
[Round "3.3"]
[White "Vetokhin, Savva"]
[Black "Gotsiuk, Denis"]
[Result "1/2-1/2"]
[ECO "B03"]
[WhiteElo "2081"]
[BlackElo "1976"]
[Annotator "NA"]
[PlyCount "82"]
[EventDate "2019.11.18"]
[EventType "swiss"]
[EventCountry "RUS"]
[SourceTitle "playchess.com"]
[Source "ChessBase"]
[SourceQuality "1"]
[TimeControl "5400+30"]

1. e4 {[%emt 0:00:00]} Nf6 {[%emt 0:00:00]} 2. e5 {[%emt 0:00:00]} Nd5 {[%emt 0:00:00]} 3. d4 {[%emt 0:00:02]} d6 {[%emt 0:00:00]} 4. c4 {[%emt 0:00:07]} Nb6 {[%emt 0:00:00]} 5. exd6 {[%emt 0:00:06]} exd6 {[%emt 0:00:00]} 6. Nc3 {[%emt 0:00:53]} Be7 {[%emt 0:00:00]} 7. Be3 {[%emt 0:00:09]} Nc6 {[%emt 0:03:54]} 8. h3 {[%emt 0:03:11] B03: Alekhine's Defence: Four Pawns Attack} Bf5 {[%emt 0:01:00]} 9. Nf3 {[%emt 0:02:26]} Bf6 {[%emt 0:01:30]} (9... O-O 10. g4 Bg6 11. h4 h6 12. h5 Bh7 13. Rg1 d5 14. g5 hxg5 15. Nxg5 Bxg5 16. Rxg5 Nb4 {0-1 (57) Harikrishna,P (2744)-Bortnyk,O (2610) Riadh 2017}) 10. Rc1 {[%emt 0:03:43]} O-O {[%emt 0:01:54]} 11. d5 {[%emt 0:03:47]} Ne5 {[%emt 0:01:16]} 12. Nd4 {[%emt 0:00:19]} Bg6 {[%emt 0:04:10]} 13. b3 {[%emt 0:01:05]} Re8 {[%emt 0:01:29]} 14. Be2 {[%emt 0:00:22]} Bg5 $146 {[%emt 0:02:02]} ({Predecessor:} 14... Nd3+ 15. Bxd3 Bxd4 16. Bxg6 Bxe3 17. Bxh7+ Kxh7 {0-1 (44) Jaenig,R (2164)-Wohl,A (2418) Bad Woerishofen 2008}) 15. Bxg5 {[%emt 0:03:43]} Qxg5 {[%emt 0:00:02]} 16. O-O {[%emt 0:00:12]} Qf4 {[%emt 0:07:27]} 17. g3 {[%emt 0:01:24]} Qh6 {[%emt 0:01:14]} ({Black should try} 17... Qf6 $1 $14) 18. Kh2 {[%emt 0:00:32]} Ned7 {[%emt 0:10:31]} 19. f4 {[%emt 0:01:55]} (19. Ndb5 $142) 19... Be4 {[%emt 0:07:27]} (19... Nf6 $16) 20. Ndb5 {[%emt 0:02:00]} Bf5 {[%emt 0:04:06]} 21. Bg4 {[%emt 0:00:16]} Bxg4 {[%emt 0:01:14]} 22. Qxg4 {[%emt 0:00:27]} Rec8 {[%emt 0:01:59]} 23. Rfe1 {[%emt 0:02:57]} a6 {[%emt 0:00:19]} 24. Nd4 {[%emt 0:00:07]} Re8 {[%emt 0:17:37]} 25. Nf5 {[%emt 0:05:43]} Qf6 {[%emt 0:01:07]} 26. Ne4 {[%emt 0:00:55]} Qg6 {[%emt 0:00:18]} 27. Qxg6 {[%emt 0:01:33]} hxg6 {[%emt 0:00:07]} 28. Nd4 {[%emt 0:00:05]} Kf8 {[%emt 0:06:07]} 29. Kg2 {[%emt 0:00:56]} Re7 {[%emt 0:01:21]} 30. Ng5 {[%emt 0:01:01]} Rae8 {[%emt 0:01:21]} 31. Rxe7 {[%emt 0:00:21]} Rxe7 {[%emt 0:00:06]} 32. Kf3 {[%emt 0:00:04]} Nc5 {[%emt 0:02:50]} 33. Rd1 {[%emt 0:00:27]} Nbd7 {[%emt 0:01:02]} 34. g4 {[%emt 0:00:52]} Nf6 {[%emt 0:00:28]} 35. b4 {[%emt 0:00:31]} Na4 {[%emt 0:05:40]} 36. Rc1 {[%emt 0:01:46]} Nb2 {[%emt 0:01:17]} 37. Ne2 {[%emt 0:05:27]} b5 {[%emt 0:03:36]} 38. cxb5 {[%emt 0:00:21]} axb5 {[%emt 0:00:15]} 39. Nc3 $1 {[%emt 0:00:39]} Nd3 {[%emt 0:01:11]} 40. Rb1 $11 {[%emt 0:01:14]} Ne1+ {[%emt 0:00:32]} 41. Kf2 {[%emt 0:00:51]} Nd3+ {[%emt 0:14:01]} 1/2-1/2

[Event "Moscow Youth U19 2019"]
[Site "Moscow"]
[Date "2019.11.20"]
[Round "3.4"]
[White "Miroshnik, Ekaterina"]
[Black "Makarian, Rudik"]
[Result "0-1"]
[ECO "A64"]
[WhiteElo "2127"]
[BlackElo "2405"]
[Annotator "ChessBase"]
[PlyCount "152"]
[EventDate "2019.11.18"]
[EventType "swiss"]
[EventCountry "RUS"]
[SourceTitle "playchess.com"]
[Source "ChessBase"]
[SourceQuality "1"]
[TimeControl "5400+30"]

1. d4 {[%emt 0:00:00]} Nf6 {[%emt 0:00:00]} 2. Nf3 {[%emt 0:00:00]} g6 {[%emt 0:00:00]} 3. c4 {[%emt 0:00:32]} Bg7 {[%emt 0:00:00]} 4. g3 {[%emt 0:00:04]} c5 {[%emt 0:00:00]} 5. d5 {[%emt 0:00:09]} O-O {[%emt 0:00:00]} 6. Nc3 {[%emt 0:00:18]} e6 {[%emt 0:00:01]} 7. Bg2 {[%emt 0:00:06]} exd5 {[%emt 0:00:04]} 8. cxd5 {[%emt 0:00:03]} d6 {[%emt 0:00:02]} 9. O-O {[%emt 0:00:05]} Re8 {[%emt 0:00:03]} 10. Nd2 {[%emt 0:01:03]} a6 {[%emt 0:00:04]} 11. a4 {[%emt 0:00:03]} Nbd7 {[%emt 0:00:03]} 12. Nc4 {[%emt 0:00:54]} Ne5 {[%emt 0:01:20]} 13. Nxe5 {[%emt 0:02:47]} Rxe5 {[%emt 0:00:02]} 14. Bf4 {[%emt 0:00:09]} Re8 {[%emt 0:00:04]} 15. a5 {[%emt 0:01:08]} Rb8 {[%emt 0:04:36]} 16. Qd2 {[%emt 0:16:38]} b5 {[%emt 0:01:40]} 17. axb6 {[%emt 0:00:05]} Rxb6 {[%emt 0:00:46]} 18. e4 {[%emt 0:05:13]} Bd7 {[%emt 0:01:56]} 19. Ra2 {[%emt 0:01:32]} Ng4 {[%emt 0:11:05]} 20. Qe2 {[%emt 0:09:01]} Ne5 {[%emt 0:17:07]} 21. Rxa6 {[%emt 0:21:02]} Bg4 {[%emt 0:00:07]} 22. f3 {[%emt 0:00:02]} Rxa6 {[%emt 0:00:04]} 23. Qxa6 {[%emt 0:00:05]} Bc8 {[%emt 0:00:04]} 24. Qe2 {[%emt 0:03:43]} Qa5 {[%emt 0:00:25]} 25. Qb5 {[%emt 0:03:47]} Qd8 {[%emt 0:04:16]} 26. Ra1 {[%emt 0:02:33]} Bd7 {[%emt 0:02:01]} 27. Qe2 {[%emt 0:01:00]} Qb8 {[%emt 0:00:44]} 28. Ra6 {[%emt 0:03:20]} c4 {[%emt 0:10:50]} 29. Be3 {[%emt 0:08:16]} Nd3 {[%emt 0:01:54]} 30. Rb6 {[%emt 0:01:12]} Qc7 {[%emt 0:00:39]} 31. Bf1 {[%emt 0:03:08]} Rb8 {[%emt 0:01:49]} 32. Rxb8+ {[%emt 0:00:09]} Qxb8 {[%emt 0:00:03]} 33. Qd2 {[%emt 0:07:17]} Nxb2 {[%emt 0:09:36]} 34. Bd4 {[%emt 0:00:10]} Bxd4+ {[%emt 0:00:22]} 35. Qxd4 {[%emt 0:00:03]} Qb3 {[%emt 0:00:10]} 36. e5 {[%emt 0:06:30]} dxe5 {[%emt 0:23:59]} 37. Qxe5 {[%emt 0:00:01]} Nd3 {[%emt 0:01:43]} 38. Qd4 {[%emt 0:05:06]} Qb2 {[%emt 0:01:49]} 39. Ne2 {[%emt 0:01:10]} Qb1 {[%emt 0:02:05]} 40. g4 {[%emt 0:00:52]} Ne1 {[%emt 0:02:32]} 41. Qe3 {[%emt 0:00:30]} Qd1 {[%emt 0:01:08]} 42. Kf2 {[%emt 0:00:38]} Nd3+ {[%emt 0:01:41]} 43. Kg1 {[%emt 0:00:17]} h5 {[%emt 0:00:28]} 44. h3 {[%emt 0:00:05]} hxg4 {[%emt 0:00:13]} 45. hxg4 {[%emt 0:00:01]} Qe1 {[%emt 0:00:28]} 46. d6 {[%emt 0:00:40]} Qb4 {[%emt 0:00:41]} 47. Qd4 {[%emt 0:00:13]} Ne1 {[%emt 0:00:30]} 48. Kf2 {[%emt 0:00:28]} Nc2 {[%emt 0:00:20]} 49. Qe5 {[%emt 0:01:39]} Qb6+ {[%emt 0:00:41]} 50. Kg3 {[%emt 0:00:05]} Ne3 {[%emt 0:00:26]} 51. Bg2 {[%emt 0:00:34]} Nd1 {[%emt 0:01:37]} 52. Qd4 {[%emt 0:00:04]} Qxd4 {[%emt 0:00:22]} 53. Nxd4 {[%emt 0:00:01]} Ne3 {[%emt 0:00:43]} 54. Bh3 {[%emt 0:01:34]} c3 {[%emt 0:00:59]} 55. g5 {[%emt 0:00:21]} Bxh3 {[%emt 0:00:54]} 56. Kxh3 {[%emt 0:00:01]} Kf8 {[%emt 0:00:08]} 57. Ne2 {[%emt 0:01:29]} Nd5 {[%emt 0:00:56]} 58. Kg3 {[%emt 0:00:30]} Ke8 {[%emt 0:00:03]} 59. f4 {[%emt 0:00:20]} Kd7 {[%emt 0:00:26]} 60. Kf3 {[%emt 0:00:06]} c2 {[%emt 0:00:25]} 61. Nc1 {[%emt 0:00:16]} Kxd6 {[%emt 0:00:22]} 62. Ke4 {[%emt 0:00:04]} Kc5 {[%emt 0:01:40]} 63. Nb3+ {[%emt 0:01:27]} Kc4 {[%emt 0:00:53]} 64. Nc1 {[%emt 0:00:06]} Kc5 {[%emt 0:00:03]} 65. Nb3+ {[%emt 0:00:03]} Kc4 {[%emt 0:00:05]} 66. Nc1 {[%emt 0:00:05]} Nb4 {[%emt 0:01:53]} 67. f5 {[%emt 0:01:59]} Nc6 {[%emt 0:00:35]} 68. fxg6 {[%emt 0:00:31]} fxg6 {[%emt 0:00:01]} 69. Ke3 {[%emt 0:00:21]} Kc3 {[%emt 0:00:31]} 70. Ke4 {[%emt 0:00:42]} Nd4 {[%emt 0:00:47]} 71. Ke5 {[%emt 0:00:28]} Kd2 {[%emt 0:00:31]} 72. Na2 {[%emt 0:00:06]} Nf3+ {[%emt 0:00:45]} 73. Kf6 {[%emt 0:00:11]} Nh4 {[%emt 0:00:03]} 74. Ke5 {[%emt 0:00:44]} c1=Q {[%emt 0:00:04]} 75. Nxc1 {[%emt 0:00:03]} Kxc1 {[%emt 0:00:04]} 76. Kf4 {[%emt 0:00:05]} Kd2 {[%emt 0:00:06]} 0-1

[Event "Moscow Youth U19 2019"]
[Site "Moscow"]
[Date "2019.11.20"]
[Round "3.5"]
[White "Nikolaev, Daniil"]
[Black "Gurvich, Vitaly"]
[Result "0-1"]
[ECO "B07"]
[WhiteElo "1867"]
[BlackElo "2265"]
[Annotator "ChessBase"]
[PlyCount "76"]
[EventDate "2019.11.18"]
[EventType "swiss"]
[EventCountry "RUS"]
[SourceTitle "playchess.com"]
[Source "ChessBase"]
[SourceQuality "1"]
[TimeControl "5400+30"]

1. e4 {[%emt 0:00:00]} d6 {[%emt 0:10:40]} 2. d4 {[%emt 0:00:15]} Nf6 {[%emt 0:00:04]} 3. Nc3 {[%emt 0:00:28]} e5 {[%emt 0:00:06]} 4. dxe5 {[%emt 0:02:14]} dxe5 {[%emt 1:21:10]} 5. Qxd8+ {[%emt 0:00:15]} Kxd8 {[%emt 0:00:00]} 6. Nf3 {[%emt 0:18:47]} Bd6 {[%emt 0:00:00]} 7. h3 {[%emt 0:01:42]} c6 {[%emt 0:00:00]} 8. Be3 {[%emt 0:01:44]} Be6 {[%emt 0:00:00]} 9. O-O-O {[%emt 0:00:40]} Ke7 {[%emt 0:00:00]} 10. Ng5 {[%emt 0:03:11]} Nbd7 {[%emt 0:00:00]} 11. Nxe6 {[%emt 0:00:08]} fxe6 {[%emt 0:00:00]} 12. g3 {[%emt 0:09:31]} Bc5 {[%emt 0:00:00]} 13. Bg2 {[%emt 0:05:15]} Bxe3+ {[%emt 0:00:00]} 14. fxe3 {[%emt 0:00:04]} a5 {[%emt 0:00:00]} 15. g4 {[%emt 0:06:02]} h6 {[%emt 0:00:00]} 16. Ne2 {[%emt 0:02:19]} Nc5 {[%emt 0:00:00]} 17. Ng3 {[%emt 0:00:08]} a4 {[%emt 0:00:00]} 18. c3 {[%emt 0:11:41]} b5 {[%emt 0:00:00]} 19. Rd2 {[%emt 0:06:53]} a3 {[%emt 0:00:00]} 20. b4 {[%emt 0:00:39]} Na4 {[%emt 0:00:00]} 21. Kc2 {[%emt 0:00:19]} c5 {[%emt 0:00:00]} 22. bxc5 {[%emt 0:01:56]} Rhc8 {[%emt 0:00:00]} 23. Kb3 {[%emt 0:09:05]} Nxc5+ {[%emt 0:00:00]} 24. Kc2 {[%emt 0:03:39]} Na4 {[%emt 0:00:00]} 25. Ne2 {[%emt 0:02:52]} b4 {[%emt 0:00:00]} 26. Kb3 {[%emt 0:01:40]} Nc5+ {[%emt 0:00:00]} 27. Kc2 {[%emt 0:00:33]} Ncxe4 {[%emt 0:00:00]} 28. Bxe4 {[%emt 0:00:05]} Nxe4 {[%emt 0:00:00]} 29. Rd3 {[%emt 0:00:05]} Nf2 {[%emt 0:00:00]} 30. Rb1 {[%emt 0:00:44]} Nxd3 {[%emt 0:00:00]} 31. Kxd3 {[%emt 0:00:03]} Rd8+ {[%emt 0:00:00]} 32. Kc2 {[%emt 0:00:17]} bxc3 {[%emt 0:00:00]} 33. Nxc3 {[%emt 0:00:05]} Rab8 {[%emt 0:00:00]} 34. Rb3 {[%emt 0:00:33]} Rxb3 {[%emt 0:00:00]} 35. Kxb3 {[%emt 0:00:05]} Rd3 {[%emt 0:00:00]} 36. Kb4 {[%emt 0:01:06]} Rxe3 {[%emt 0:00:00]} 37. Nb5 {[%emt 0:00:04]} Rxh3 {[%emt 0:00:00]} 38. Nxa3 {[%emt 0:00:05]} Rg3 {[%emt 0:00:00]} 0-1

[Event "Moscow Youth U19 2019"]
[Site "Moscow"]
[Date "2019.11.20"]
[Round "3.6"]
[White "Talyzin, Valeriy"]
[Black "Sekoyan, Vachagan"]
[Result "0-1"]
[ECO "B06"]
[WhiteElo "1829"]
[BlackElo "2084"]
[Annotator "NA"]
[PlyCount "113"]
[EventDate "2019.11.18"]
[EventType "swiss"]
[EventCountry "RUS"]
[SourceTitle "playchess.com"]
[Source "ChessBase"]
[SourceQuality "1"]
[TimeControl "5400+30"]

1. e4 {[%emt 0:00:00]} g6 {[%emt 0:00:00]} 2. d4 {[%emt 0:00:00]} Bg7 {[%emt 0:00:00]} 3. Nf3 {[%emt 0:00:00]} d6 {[%emt 0:00:38]} 4. Bc4 {[%emt 0:00:00]} e6 {[%emt 0:01:43]} 5. Qe2 {[%emt 0:03:58]} h6 {[%emt 0:02:36]} (5... Ne7 6. O-O a6 7. Bb3 O-O 8. Re1 Nd7 9. Nbd2 b5 10. Nf1 c5 11. c3 cxd4 12. cxd4 Nc6 13. Be3 {1-0 (63) Grigoriants,S (2576)-Nakamura,H (2786) chess.com INT 2017}) 6. c3 {[%emt 0:01:38] B06: Modern Defence} Ne7 {[%emt 0:01:56]} 7. O-O {[%emt 0:04:21]} a6 {[%emt 0:02:36]} 8. Bb3 {[%emt 0:00:24]} b6 {[%emt 0:02:55]} 9. Bf4 {[%emt 0:05:39]} Bb7 {[%emt 0:05:17]} 10. Re1 {[%emt 0:01:40]} Nd7 {[%emt 0:01:12]} 11. Nbd2 {[%emt 0:01:13]} O-O $146 {[%emt 0:03:12]} ({Predecessor:} 11... g5 12. Bg3 Ng6 13. Nc4 {½-½ (42) Jenni,F (2399)-Gabriel,C (2578) Zuerich 1999}) 12. Rad1 {[%emt 0:07:24]} Kh7 {[%emt 0:09:06]} 13. Bc2 {[%emt 0:06:23]} Nf6 {[%emt 0:18:35]} 14. h3 {[%emt 0:04:05]} Nd7 {[%emt 0:05:49]} 15. Nf1 {[%emt 0:11:30]} Ng8 {[%emt 0:07:30]} 16. e5 {[%emt 0:11:17]} dxe5 {[%emt 0:03:43]} 17. dxe5 {[%emt 0:00:20]} Qe7 {[%emt 0:01:22]} 18. Bg3 {[%emt 0:06:02]} Rad8 {[%emt 0:11:22]} 19. N1h2 {[%emt 0:02:57]} Rc8 {[%emt 0:02:44]} 20. Bh4 {[%emt 0:00:46]} Qe8 {[%emt 0:00:05]} 21. Rd2 {[%emt 0:03:57]} b5 {[%emt 0:04:26]} 22. Rd4 {[%emt 0:09:58]} Ne7 {[%emt 0:02:32]} 23. Red1 {[%emt 0:02:46]} Nb6 {[%emt 0:00:17]} (23... Bd5 $11 {keeps the balance.}) 24. g4 {[%emt 0:03:52]} Nc6 {[%emt 0:01:35]} 25. Rf4 {[%emt 0:01:28]} Nd5 {[%emt 0:01:33]} 26. Bg3 $2 {[%emt 0:07:36]} (26. Rxd5 $11 {and White has nothing to worry.} exd5 27. Bf6) 26... Nxf4 {[%emt 0:01:17]} 27. Bxf4 {[%emt 0:00:06]} Rd8 {[%emt 0:00:27]} 28. Nd2 {[%emt 0:03:17]} Ne7 {[%emt 0:04:31]} 29. g5 {[%emt 0:00:32]} Nf5 {[%emt 0:03:48]} 30. Ng4 $19 {[%emt 0:00:51]} (30. gxh6 $17 Bxh6 31. Ng4) 30... h5 {[%emt 0:00:56]} 31. Ne3 {[%emt 0:00:20]} Qc6 {[%emt 0:00:41]} 32. Be4 {[%emt 0:00:29]} Qb6 {[%emt 0:00:02]} 33. Nxf5 {[%emt 0:00:49]} exf5 {[%emt 0:00:29]} 34. Bxb7 {[%emt 0:00:32]} Qxb7 {[%emt 0:00:04]} 35. Nf3 {[%emt 0:00:13]} Qe4 {[%emt 0:01:03]} 36. Qxe4 {[%emt 0:00:42]} Rxd1+ {[%emt 0:00:11]} 37. Qe1 {[%emt 0:00:02]} Rxe1+ {[%emt 0:00:05]} 38. Nxe1 {[%emt 0:00:02]} Rd8 {[%emt 0:00:59]} 39. Kf1 {[%emt 0:00:56]} Rd1 {[%emt 0:00:50]} 40. Ke2 {[%emt 0:00:03]} Rb1 {[%emt 0:00:28]} 41. Nd3 {[%emt 0:00:24]} Rh1 {[%emt 0:00:21]} 42. f3 {[%emt 0:00:48]} Rb1 {[%emt 0:01:17]} 43. Bc1 {[%emt 0:00:21]} Ra1 {[%emt 0:00:34]} 44. a3 {[%emt 0:00:44]} Rxc1 {[%emt 0:00:34]} 45. Nxc1 {[%emt 0:00:04]} Bxe5 {[%emt 0:00:02]} 46. Nd3 {[%emt 0:00:14] [#]} Bd6 $1 {[%emt 0:00:03]} 47. Ke3 {[%emt 0:00:26]} Kg7 {[%emt 0:00:59]} 48. Nf4 {[%emt 0:02:06]} Bxf4+ {[%emt 0:00:55]} 49. Kxf4 {[%emt 0:00:05]} f6 {[%emt 0:00:25]} 50. h4 {[%emt 0:01:06]} Kf7 {[%emt 0:00:34]} 51. b3 {[%emt 0:00:16]} c6 {[%emt 0:00:20]} 52. b4 {[%emt 0:00:42]} Ke6 {[%emt 0:00:09]} 53. gxf6 {[%emt 0:00:25]} Kxf6 {[%emt 0:00:06]} 54. Kg3 {[%emt 0:00:25]} Ke5 {[%emt 0:00:22]} 55. Kg2 {[%emt 0:00:19]} Kf4 {[%emt 0:00:44]} 56. Kf2 {[%emt 0:00:08]} g5 {[%emt 0:00:07]} 57. Ke1 {[%emt 0:01:49]} 0-1